bitfinex/quotes_ETHUSD_20250107
["timestamp","ask_amount","ask_price","bid_price","bid_amount"]
[1736234225959,5.15295189,3676.4,3675.8,1.73926808]
[1736234227143,5.15295189,3676.4,3675.9,0.94176808]
[1736234228220,5.15295189,3676.4,3675.9,5.11261601]
[1736234228426,5.15295189,3676.4,3675.9,7.83299601]
[1736234229088,5.15295189,3676.4,3676.0,3.8149]
[1736234229490,5.15295189,3676.4,3676.1,1.14070743]
[1736234230831,5.15295189,3676.4,3676.2,0.182]
[1736234231221,5.15295189,3676.4,3676.2,4.12376808]
[1736234233227,5.15295189,3676.4,3676.3,0.94176808]
[1736234234918,5.15295189,3676.4,3676.3,5.35431161]
[1736234235123,5.15295189,3676.4,3676.3,2.35431161]
[1736234236732,5.15295189,3676.4,3676.3,3.49501904]
[1736234238115,5.15295189,3676.4,3676.3,9.21513904]
[1736234238854,5.15295189,3676.4,3676.3,10.00503904]
[1736234239261,5.15295189,3676.4,3676.3,11.17588697]
[1736234239557,5.15295189,3676.4,3676.3,12.30127159]
[1736234240949,5.15295189,3676.4,3676.3,14.74583957]
[1736234242454,5.15295189,3676.4,3676.3,10.03517954]
[1736234246338,5.15295189,3676.4,3676.3,12.31145]
[1736234247363,5.15295189,3676.4,3676.3,10.03517954]
[1736234252070,5.15295189,3676.4,3676.3,9.78102282]
[1736234252235,5.15295189,3676.4,3676.3,9.96202282]
[1736234267494,5.15295189,3676.4,3676.3,8.25543161]
[1736234267791,5.15295189,3676.4,3676.3,8.07443161]
[1736234267951,5.15295189,3676.4,3676.3,8.25543161]
[1736234268160,5.15295189,3676.4,3676.3,8.07443161]
[1736234268397,5.97045189,3676.4,3676.3,5.53531161]
[1736234269862,5.97045189,3676.4,3676.3,5.26135387]
[1736234272178,5.97045189,3676.4,3676.3,6.6738974]
[1736234273302,5.97045189,3676.4,3676.3,5.53531161]
[1736234274891,5.97045189,3676.4,3676.3,7.24190282]
[1736234277222,5.97045189,3676.4,3676.3,5.53531161]
[1736234281618,6.56749708,3676.4,3676.3,5.35431161]
[1736234281794,6.56749708,3676.4,3676.3,5.53531161]
[1736234282490,6.56749708,3676.4,3676.3,2.53531161]
[1736234286526,6.56749708,3676.4,3676.3,1.12276808]
[1736234287828,6.56749708,3676.4,3676.3,2.53531161]
[1736234289248,6.56749708,3676.4,3676.3,1.12276808]
[1736234289440,5.97045189,3676.4,3676.3,1.12276808]
[1736234295514,5.97045189,3676.4,3676.3,0.94176808]
[1736234296946,5.97045189,3676.4,3676.1,3.0]
[1736234297820,5.97045189,3676.4,3676.2,0.94278891]
[1736234298772,5.97045189,3676.4,3676.1,0.94278891]
[1736234307922,5.97045189,3676.4,3676.1,3.94278891]
[1736234309265,5.97045189,3676.4,3676.2,0.94278891]
[1736234313035,5.97045189,3676.4,3676.3,0.94278891]
[1736234314376,5.97045189,3676.4,3676.2,0.94278891]
[1736234315732,5.97045189,3676.4,3676.3,0.94278891]
[1736234315932,6.95657987,3676.4,3676.3,0.94278891]
[1736234316855,6.95657987,3676.4,3676.2,5.35533244]
[1736234317057,6.95657987,3676.4,3676.2,2.35533244]
[1736234318063,6.95657987,3676.4,3676.3,0.94278891]
[1736234318370,5.97045189,3676.4,3676.3,0.94278891]
[1736234319397,5.97045189,3676.4,3676.2,2.35533244]
[1736234320447,5.97045189,3676.4,3676.3,0.94278891]
[1736234321288,8.69050189,3676.4,3676.3,0.94278891]
[1736234323343,5.97045189,3676.4,3676.3,0.94278891]
[1736234323643,6.68458187,3676.4,3676.3,0.94278891]
[1736234328580,6.68458187,3676.4,3676.3,2.35919666]
[1736234329175,9.40463187,3676.4,3676.3,2.35919666]
[1736234330851,9.40463187,3676.4,3676.3,0.94278891]
[1736234334588,9.40463187,3676.4,3676.3,2.35936284]
[1736234344631,5.15295189,3676.4,3676.3,2.35936284]
[1736234344839,5.15295189,3676.4,3676.3,7.32591077]
[1736234345782,5.15295189,3676.4,3676.3,9.20297645]
[1736234345967,5.15295189,3676.4,3676.3,11.92309645]
[1736234346596,5.15295189,3676.4,3676.3,11.93059645]
[1736234349317,5.15295189,3676.4,3676.3,10.05353077]
[1736234350534,5.15295189,3676.4,3676.3,12.90254016]
[1736234353526,5.15295189,3676.4,3676.3,10.05353077]
[1736234354413,5.15295189,3676.4,3676.3,11.93059645]
[1736234355639,5.15295189,3676.4,3676.3,10.05353077]
[1736234356618,5.15295189,3676.4,3676.3,8.61346966]
[1736234357043,5.15295189,3676.4,3676.3,9.60331759]
[1736234357248,5.15295189,3676.4,3676.3,12.50443759]
[1736234357847,5.15295189,3676.4,3676.3,10.22703077]
[1736234360251,5.15295189,3676.4,3676.3,11.93515873]
[1736234361245,5.15295189,3676.4,3676.3,10.22703077]
[1736234362174,5.15295189,3676.4,3676.3,11.93515873]
[1736234363575,5.15295189,3676.4,3676.3,10.7643108]
[1736234364579,5.15295189,3676.4,3676.3,13.76815534]
[1736234366071,5.15295189,3676.4,3676.3,12.47769223]
[1736234368641,5.15295189,3676.4,3676.3,14.35475791]
[1736234382553,5.15295189,3676.4,3676.3,11.50574852]
[1736234384116,5.15295189,3676.4,3676.3,9.62868284]
[1736234385496,5.15295189,3676.4,3676.3,11.50574852]
[1736234388686,1.89e-06,3676.4,3676.3,11.50574852]
[1736234388873,1.89e-06,3676.4,3676.3,16.50574852]
[1736234389386,0.7761,3677.6,3677.4,3.0]
[1736234389587,0.7761,3677.6,3677.5,1.35184793]
[1736234390589,0.7761,3677.6,3677.5,6.71121077]
[1736234391474,0.7623,3678.5,3677.6,3.0]
[1736234391676,0.7623,3678.5,3678.1,1.17084793]
[1736234391862,0.7623,3678.5,3677.9,1.17084793]
[1736234392735,0.7623,3678.5,3677.9,4.17084793]
[1736234394314,0.7623,3678.5,3678.2,1.13823491]
[1736234395790,0.7623,3678.5,3678.1,6.25187175]
[1736234397114,0.7623,3678.5,3678.2,5.35936284]
[1736234397429,0.7623,3678.5,3678.2,2.35936284]
[1736234398180,2.71864,3678.3,3678.2,2.35936284]
[1736234398534,2.71864,3678.3,3677.9,3.58552131]
[1736234398535,0.8244,3678.2,3677.9,1.13823491]
[1736234400144,0.8244,3678.2,3677.8,3.0]
[1736234400440,0.8244,3678.2,3677.7,0.181]
[1736234401339,0.8244,3678.2,3677.6,0.181]
[1736234401508,0.7706,3678.0,3677.6,0.181]
[1736234411344,0.7706,3678.0,3677.9,1.1032]
[1736234417131,0.7706,3678.0,3677.6,0.181]
[1736234418450,0.7706,3678.0,3677.7,0.94132142]
[1736234419344,0.7717,3678.7,3677.9,1.17084793]
[1736234419565,1.05732238,3678.7,3677.9,1.17084793]
[1736234421085,1.05732238,3678.7,3678.0,2.07955633]
[1736234422485,1.05732238,3678.7,3678.1,2.07955633]
[1736234422687,3.00397238,3678.7,3678.1,2.07955633]
[1736234422849,0.7793,3678.5,3678.1,2.07955633]
[1736234423594,0.7793,3678.5,3678.0,3.94132142]
[1736234423765,0.7793,3678.5,3678.0,0.94132142]
[1736234424146,1.99164793,3678.3,3678.0,0.94132142]
[1736234424463,0.8208,3678.2,3678.0,0.94132142]
[1736234424659,0.47102879,3678.1,3678.0,0.94132142]
[1736234424861,0.7801,3678.1,3678.0,0.94132142]
[1736234425164,0.7801,3678.1,3677.9,0.94132142]
[1736234426677,0.7801,3678.1,3677.6,3.181]
[1736234427805,0.7801,3678.1,3677.7,0.9411617]
[1736234428471,3.49893,3678.1,3677.7,0.9411617]
[1736234428670,0.46697779,3678.0,3677.7,0.9411617]
[1736234430472,0.7725,3677.9,3677.7,0.9411617]
[1736234438912,0.7725,3677.9,3677.8,1.1032]
[1736234440397,0.7725,3677.9,3677.8,2.0443617]
[1736234443121,0.7725,3677.9,3677.8,5.0443617]
[1736234444305,0.7725,3677.9,3677.8,6.45751125]
[1736234451478,1.121628,3677.9,3677.8,6.45751125]
[1736234453855,1.121628,3677.9,3677.8,3.45751125]
[1736234455744,1.121628,3677.9,3677.8,2.0443617]
[1736234456246,2.29247593,3677.9,3677.8,2.0443617]
[1736234457380,5.01141593,3677.9,3677.8,2.0443617]
[1736234462179,6.29979499,3677.9,3677.8,1.1032]
[1736234463685,7.44014765,3677.9,3677.8,1.1032]
[1736234465093,6.29979499,3677.9,3677.8,1.1032]
[1736234466151,5.01141593,3677.9,3677.8,1.1032]
[1736234469562,12.87732888,3677.9,3677.8,1.1032]
[1736234470885,13.45043579,3677.9,3677.8,1.1032]
[1736234473271,11.73697622,3677.9,3677.8,1.1032]
[1736234475037,12.87637153,3677.9,3677.8,1.1032]
[1736234476094,11.7055236,3677.9,3677.8,1.1032]
[1736234476305,12.87637153,3677.9,3677.8,1.1032]
[1736234477258,9.67691593,3677.9,3677.8,1.1032]
[1736234478041,8.15694,3677.9,3677.8,1.1032]
[1736234478250,5.438,3677.9,3677.8,1.9098]
[1736234482737,8.15694,3677.9,3677.8,1.1032]
[1736234483043,9.32778793,3677.9,3677.8,1.1032]
[1736234483249,10.26056672,3677.9,3677.8,1.1032]
[1736234485651,11.54725294,3677.9,3677.8,1.1032]
[1736234487355,10.26056672,3677.9,3677.8,1.1032]
[1736234488848,10.81398812,3677.9,3677.8,1.1032]
[1736234490861,12.1006598,3677.9,3677.8,1.1032]
[1736234492133,10.81398812,3677.9,3677.8,1.1032]
[1736234494471,13.24025097,3677.9,3677.8,1.1032]
[1736234495670,12.10085566,3677.9,3677.8,1.1032]
[1736234496764,13.94643996,3677.9,3677.8,1.1032]
[1736234496964,2.7196,3677.0,3676.9,0.7827]
[1736234497171,8.1576,3677.0,3676.9,0.7827]
[1736234497856,9.09044479,3677.0,3676.9,0.7827]
[1736234498258,9.09044479,3677.0,3676.4,3.0]
[1736234498259,9.09044479,3677.0,3676.6,0.7605]
[1736234501569,6.37084479,3677.0,3676.6,0.7605]
[1736234501769,2.71968,3676.9,3676.6,0.7605]
[1736234506677,6.37084479,3677.0,3676.6,0.7605]
[1736234507266,5.438,3677.0,3676.6,0.7605]
[1736234507974,2.71968,3676.9,3676.6,0.7605]
[1736234508178,8.15768,3676.9,3676.6,0.7605]
[1736234508379,8.15768,3676.9,3676.7,0.94171428]
[1736234509062,5.438,3676.9,3676.7,0.94171428]
[1736234509808,5.438,3676.9,3676.6,0.7605]
[1736234513384,6.253754,3676.9,3676.6,0.7605]
[1736234514963,8.973464,3676.9,3676.5,1.5943394]
[1736234516754,8.973464,3676.9,3676.5,0.182]
[1736234521599,6.253754,3676.9,3676.5,0.182]
[1736234521937,5.438,3676.9,3676.5,0.182]
[1736234522607,5.438,3676.9,3676.6,0.94180694]
[1736234524114,5.438,3676.9,3676.5,0.94180694]
[1736234527155,5.438,3676.9,3676.6,0.7749]
[1736234528365,5.438,3676.9,3676.7,0.94180694]
[1736234529022,6.253757,3676.9,3676.7,0.94180694]
[1736234529465,6.253757,3676.9,3676.6,1.41291211]
[1736234531765,2.71983,3676.7,3676.6,1.41291211]
[1736234531960,3.52513,3676.7,3676.6,1.41291211]
[1736234532139,3.52513,3676.7,3676.5,2.55114702]
[1736234532140,1.97614793,3676.7,3676.5,2.55114702]
[1736234532333,3.54289049,3676.6,3676.5,2.55114702]
[1736234533223,8.98089049,3676.6,3676.5,2.55114702]
[1736234533858,8.98089049,3676.6,3676.2,1.41291211]
[1736234535291,8.98089049,3676.6,3676.3,0.94325728]
[1736234537257,1.09570384,3676.5,3676.3,0.94325728]
[1736234537684,1.09570384,3676.5,3676.2,2.35616939]
[1736234538920,3.81567384,3676.5,3676.3,0.94325728]
[1736234539099,9.25367384,3676.5,3676.3,0.94325728]
[1736234540500,9.25367384,3676.5,3676.2,2.35616939]
[1736234541706,9.25367384,3676.5,3676.3,0.94325728]
[1736234543317,9.25367384,3676.5,3676.2,2.35616939]
[1736234544518,3.92536123,3676.4,3676.2,2.35616939]
[1736234544683,3.92536123,3676.4,3676.1,1.41291211]
[1736234545115,9.36336123,3676.4,3676.1,1.41291211]
[1736234545922,6.64328123,3676.4,3676.1,1.41291211]
[1736234546426,6.64328123,3676.4,3675.9,2.35605317]
[1736234548106,6.64328123,3676.4,3676.0,0.94314106]
[1736234549426,6.64328123,3676.4,3675.9,0.94314106]
[1736234550086,9.36334123,3676.4,3675.9,0.94314106]
[1736234556120,0.67495465,3676.3,3675.9,0.94314106]
[1736234556332,8.83308465,3676.3,3675.9,0.94314106]
[1736234566886,0.7589,3676.2,3675.9,0.94314106]
[1736234567068,6.1969,3676.2,3675.9,0.94314106]
[1736234573417,6.1969,3676.2,3676.0,0.94314106]
[1736234574718,6.1969,3676.2,3675.9,1.41291211]
[1736234575017,7.15609847,3676.2,3675.9,1.41291211]
[1736234575940,7.15609847,3676.2,3676.0,1.41291211]
[1736234577546,7.15609847,3676.2,3676.1,0.94400464]
[1736234578731,7.15609847,3676.2,3676.1,2.36027771]
[1736234591048,6.39719847,3676.2,3676.1,2.36027771]
[1736234591227,6.39719847,3676.2,3676.1,3.49851262]
[1736234595349,5.438,3676.2,3676.1,3.49851262]
[1736234599659,8.1582,3676.2,3676.1,3.49851262]
[1736234599821,8.1582,3676.2,3676.1,2.36027771]
[1736234602661,8.9292,3676.2,3676.1,2.36027771]
[1736234603961,8.9292,3676.2,3676.1,0.94400464]
[1736234603962,10.21965003,3676.2,3676.1,0.94400464]
[1736234604165,11.98311744,3676.2,3676.1,0.94400464]
[1736234606541,11.98311744,3676.2,3675.9,1.41698711]
[1736234606736,2.72034,3676.0,3675.9,1.41698711]
[1736234606940,8.15834,3676.0,3675.9,1.41698711]
[1736234607775,8.15834,3676.0,3675.9,2.36158426]
[1736234607941,9.79818906,3676.0,3675.9,2.36158426]
[1736234610874,5.438,3676.0,3675.9,2.36158426]
[1736234611756,5.438,3676.0,3675.9,3.14938426]
[1736234612560,5.438,3676.0,3675.9,4.85783989]
[1736234615871,5.438,3676.0,3675.9,7.85783989]
[1736234616882,5.438,3676.0,3675.9,8.03115159]
[1736234617047,5.438,3676.0,3675.9,10.87681646]
[1736234617675,5.438,3676.0,3675.9,13.59723646]
[1736234619674,5.438,3676.0,3675.9,11.30907159]
[1736234619989,5.438,3676.0,3675.9,12.49491952]
[1736234620161,1.13968059,3677.3,3676.3,0.5725]
[1736234620365,1.13968059,3677.3,3677.0,0.7878]
[1736234621084,1.99324793,3678.0,3677.1,1.17084793]
[1736234621085,0.8224,3678.0,3677.1,1.17084793]
[1736234621876,3.5413,3678.0,3677.1,1.17084793]
[1736234622282,2.71896,3677.9,3677.2,2.08274484]
[1736234622477,2.71902,3677.8,3677.3,0.181]
[1736234622686,0.47122679,3677.7,3677.3,0.181]
[1736234623058,3.19031679,3677.7,3677.3,0.181]
[1736234624794,0.47122679,3677.7,3677.3,0.181]
[1736234624994,4.71215793,3678.0,3677.3,0.181]
[1736234625326,3.54131,3678.0,3677.3,0.181]
[1736234626195,2.71897,3677.9,3677.3,0.181]
[1736234627395,1.99324793,3678.0,3677.3,0.181]
[1736234627600,2.71901,3677.8,3677.3,0.181]
[1736234629520,2.71909,3677.7,3677.3,0.182]
[1736234629983,0.47123379,3677.7,3677.0,0.7878]
[1736234630163,2.71932,3677.4,3677.0,0.9698]
[1736234635401,0.7672,3677.5,3677.0,0.9698]
[1736234636106,3.48645,3677.5,3677.0,0.9698]
[1736234636307,0.39576838,3677.4,3677.0,0.9698]
[1736234636674,3.11511838,3677.4,3677.0,0.182]
[1736234637077,0.39576838,3677.4,3677.0,0.182]
[1736234637278,2.71939,3677.3,3677.0,0.182]
[1736234638904,0.39576838,3677.4,3677.0,0.182]
[1736234639892,0.56051942,3677.3,3676.8,0.9807]
[1736234640096,0.7672,3677.5,3676.8,0.9807]
[1736234640729,2.71941,3677.3,3676.8,0.9807]
[1736234642620,1.17084793,3677.1,3676.8,0.7987]
[1736234642820,1.17084793,3676.9,3676.3,0.7707]
[1736234642982,0.7666,3676.8,3676.4,0.182]
[1736234643189,3.48639,3676.8,3676.4,0.182]
[1736234643605,2.71985,3676.7,3676.2,1.13814769]
[1736234643798,2.71985,3676.7,3676.3,0.182]
[1736234644390,2.71985,3676.7,3676.0,0.7555]
[1736234644726,2.71985,3676.7,3676.1,0.182]
[1736234646129,1.23232379,3676.8,3676.1,0.182]
[1736234646305,2.7197,3676.9,3676.2,0.7578]
[1736234646841,2.7198,3676.8,3676.2,0.7578]
[1736234647735,2.7199,3676.6,3676.2,0.7578]
[1736234652635,3.4826,3676.6,3676.1,0.182]
[1736234654437,2.7199,3676.6,3676.1,0.182]
[1736234656642,2.7199,3676.6,3675.9,3.30515793]
[1736234656823,2.7199,3676.6,3676.2,1.12259156]
[1736234657723,2.7199,3676.6,3676.2,0.182]
[1736234658853,2.71998,3676.5,3676.2,0.182]
[1736234659625,0.52332055,3676.6,3676.2,0.182]
[1736234659842,2.71996,3676.6,3676.2,0.182]
[1736234660054,1.17084793,3676.7,3676.0,2.07933182]
[1736234660221,2.72012,3676.3,3676.1,0.184]
[1736234662959,2.71998,3676.5,3676.1,0.184]
[1736234663267,2.71984,3676.7,3676.1,0.184]
[1736234666676,2.71984,3676.7,3675.9,0.7578]
[1736234666855,2.71984,3676.7,3676.0,0.184]
[1736234668556,2.71984,3676.7,3676.1,0.8298]
[1736234671192,2.71992,3676.6,3676.1,0.8298]
[1736234673626,2.71992,3676.6,3676.2,0.94189314]
[1736234675901,2.71992,3676.6,3676.3,0.184]
[1736234677648,0.55048816,3676.4,3676.3,0.184]
[1736234678836,0.55048816,3676.4,3676.1,0.8298]
[1736234678995,0.55048816,3676.4,3676.2,0.184]
[1736234679196,0.55048816,3676.4,3676.3,0.94253469]
[1736234684535,0.55048816,3676.4,3676.3,2.35174493]
[1736234688558,0.55048816,3676.4,3676.3,3.48989262]
[1736234690927,3.51812,3676.6,3676.3,3.48989262]
[1736234691261,4.10098485,3676.6,3676.3,3.48989262]
[1736234692030,4.10098485,3676.6,3676.4,2.35174493]
[1736234693167,4.10098485,3676.6,3676.5,0.94253469]
[1736234694368,4.65011393,3676.6,3676.5,0.94253469]
[1736234694666,4.65011393,3676.6,3676.5,2.35851728]
[1736234697029,4.06724908,3676.6,3676.5,2.35851728]
[1736234698097,3.26904908,3676.6,3676.5,2.35851728]
[1736234699384,2.71992,3676.6,3676.5,2.35851728]
[1736234704194,3.89076793,3676.6,3676.5,2.35851728]
[1736234704397,4.72206793,3676.6,3676.5,2.35851728]
[1736234704898,5.63528637,3676.6,3676.5,2.35851728]
[1736234705072,5.63528637,3676.6,3676.5,0.94253469]
[1736234705972,11.07518637,3676.6,3676.5,0.94253469]
[1736234706590,3.48621,3676.0,3675.8,1.13814769]
[1736234706988,0.7658,3676.0,3675.8,1.13814769]
[1736234707187,2.72042,3675.9,3675.8,1.13814769]
[1736234708039,2.72042,3675.9,3675.7,1.13814769]
[1736234709189,2.72042,3675.9,3675.8,2.35980973]
[1736234710363,3.25658238,3675.9,3675.8,2.35980973]
[1736234710583,3.77590541,3675.9,3675.8,2.35980973]
[1736234710795,3.77590541,3675.9,3675.8,0.94392389]
[1736234711102,9.21580541,3675.9,3675.8,0.94392389]
[1736234712195,2.72051,3675.8,3675.5,2.35980973]
[1736234712398,8.16041,3675.8,3675.5,2.35980973]
[1736234712721,2.72061,3675.7,3675.5,2.35980973]
[1736234712906,8.16051,3675.7,3675.5,2.35980973]
[1736234713334,8.16051,3675.7,3675.6,0.94392389]
[1736234714809,2.72064,3675.6,3675.5,0.94392389]
[1736234715989,2.72064,3675.6,3675.4,0.94392389]
[1736234718617,2.72064,3675.6,3675.3,0.94392389]
[1736234728243,5.4399,3675.7,3675.3,0.94392389]
[1736234728465,2.72075,3675.5,3675.3,0.94392389]
[1736234729248,8.16065,3675.5,3675.3,0.94392389]
[1736234730547,8.16065,3675.5,3675.0,1.32114769]
[1736234731353,2.72086,3675.3,3675.0,1.13814769]
[1736234731711,5.4399,3675.5,3675.1,0.94216911]
[1736234732014,2.72094,3675.2,3675.1,0.94216911]
[1736234733026,1.17084793,3675.4,3675.0,1.13814769]
[1736234733027,2.72101,3675.1,3675.0,0.94216911]
[1736234733439,8.16091,3675.1,3675.0,0.94216911]
[1736234734456,8.16091,3675.1,3674.8,1.32114769]
[1736234734457,2.72109,3675.0,3674.8,0.183]
[1736234734626,2.72116,3674.9,3674.8,0.183]
[1736234734833,8.16106,3674.9,3674.6,0.7806]
[1736234737919,8.71319972,3674.9,3674.6,0.7806]
[1736234739951,8.71319972,3674.9,3674.5,0.183]
[1736234740655,8.71319972,3674.9,3674.3,1.95014769]
[1736234740859,3.54014,3674.8,3674.3,1.13814769]
[1736234741220,3.54014,3674.8,3674.6,0.94181972]
[1736234742046,4.71098793,3674.8,3674.6,0.94181972]
[1736234742453,4.71098793,3674.8,3674.3,0.94181972]
[1736234742960,2.72132,3674.7,3674.3,0.94181972]
[1736234743529,8.16122,3674.7,3674.3,0.94181972]
[1736234750304,2.72138,3674.6,3674.3,0.94181972]
[1736234750606,8.16128,3674.6,3674.3,0.94181972]
[1736234751709,5.4399,3674.6,3674.3,0.94181972]
[1736234753727,5.4399,3674.6,3674.3,2.07996741]
[1736234767544,5.4399,3674.6,3674.4,2.07996741]
[1736234769062,5.4399,3674.6,3674.4,1.13814769]
[1736234770614,5.4399,3674.6,3674.5,0.94181972]
[1736234771967,5.4399,3674.6,3674.5,2.07996741]
[1736234773366,5.4399,3674.6,3674.5,3.49585325]
[1736234776467,5.4399,3674.6,3674.5,2.35770556]
[1736234779174,5.4399,3674.6,3674.5,4.0649271]
[1736234781378,5.4399,3674.6,3674.5,2.35770556]
[1736234786773,5.4399,3674.6,3674.5,6.51159292]
[1736234788073,5.4399,3674.6,3674.5,4.23529753]
[1736234789282,5.4399,3674.6,3674.5,6.51159292]
[1736234790243,5.4399,3674.6,3674.5,4.23529753]
[1736234792981,5.4399,3674.6,3674.5,6.51159292]
[1736234794297,5.4399,3674.6,3674.5,4.23529753]
[1736234797497,5.4399,3674.6,3674.5,8.00369753]
[1736234798217,5.4399,3674.6,3674.5,10.27999292]
[1736234799199,5.4399,3674.6,3674.5,8.00369753]
[1736234801703,5.4399,3674.6,3674.5,10.72514753]
[1736234802047,5.4399,3674.6,3674.5,13.57836721]
[1736234802188,5.4399,3674.6,3674.5,10.85691721]
[1736234802624,5.4399,3674.6,3674.5,12.02776514]
[1736234803825,5.4399,3674.6,3674.5,9.17454546]
[1736234805027,5.4399,3674.6,3674.5,7.29695349]
[1736234806093,5.4399,3674.6,3674.5,12.02588519]
[1736234807299,5.4399,3674.6,3674.5,10.14829322]
[1736234809237,5.4399,3674.6,3674.5,12.02588519]
[1736234810200,5.4399,3674.6,3674.5,10.85503726]
[1736234810618,5.4399,3674.6,3674.5,8.97744529]
[1736234811546,5.4399,3674.6,3674.5,9.15944529]
[1736234811846,5.4399,3674.6,3674.5,5.53970556]
[1736234812047,5.4399,3674.6,3674.5,2.53970556]
[1736234812679,6.333134,3674.6,3674.5,2.53970556]
[1736234812956,6.333134,3674.6,3674.5,4.25039163]
[1736234813375,6.333134,3674.6,3674.5,4.06839163]
[1736234813942,7.142034,3674.6,3674.5,4.06839163]
[1736234815789,7.142034,3674.6,3674.5,2.35770556]
[1736234818963,9.863414,3674.6,3674.5,2.35770556]
[1736234819997,11.03426193,3674.6,3674.5,2.35770556]
[1736234820872,11.03426193,3674.6,3674.5,0.94181972]
[1736234822294,11.03426193,3674.6,3674.1,2.35770556]
[1736234822295,2.72152,3674.5,3674.1,2.35770556]
[1736234822489,2.72156,3674.4,3674.1,2.35770556]
[1736234823186,2.72156,3674.4,3674.1,0.94181972]
[1736234823399,2.72166,3674.3,3674.1,0.94181972]
[1736234824430,2.72166,3674.3,3674.0,0.94181972]
[1736234825594,6.54334019,3674.5,3674.0,0.94181972]
[1736234825797,2.72161,3674.3,3674.0,0.94181972]
[1736234825999,8.16151,3674.3,3674.0,0.94181972]
[1736234826400,0.7501,3674.2,3674.0,0.94181972]
[1736234826585,6.19,3674.2,3674.0,0.94181972]
[1736234826923,6.19,3674.2,3673.9,0.94181972]
[1736234827907,8.91169,3674.2,3673.9,0.94181972]
[1736234828295,2.72175,3674.1,3673.9,0.94181972]
[1736234829991,7.29241701,3674.2,3673.9,0.94181972]
[1736234830203,6.19,3674.2,3673.9,0.94181972]
[1736234830899,6.19,3674.2,3673.8,2.08242698]
[1736234831824,6.19,3674.2,3673.8,0.94181972]
[1736234834460,5.4399,3674.2,3673.8,1.72011972]
[1736234835438,5.4399,3674.2,3673.9,2.08242698]
[1736234840332,5.4399,3674.2,3673.8,2.08242698]
[1736234841295,6.33188,3674.2,3673.8,2.08242698]
[1736234841523,9.05358,3674.2,3673.8,2.08242698]
[1736234841729,6.33188,3674.2,3673.8,2.08242698]
[1736234841935,0.8079,3674.0,3673.8,2.08242698]
[1736234843130,0.8079,3674.0,3673.8,0.94181972]
[1736234845739,6.2092,3674.2,3673.8,0.94181972]
[1736234849840,6.2092,3674.2,3673.8,2.08242698]
[1736234852104,5.4399,3674.2,3673.8,2.08242698]
[1736234853941,5.4399,3674.2,3673.9,2.08242698]
[1736234855317,5.4399,3674.2,3674.0,0.94181972]
[1736234856381,5.4399,3674.2,3674.1,0.94181972]
[1736234858558,5.4399,3674.2,3674.1,2.08242698]
[1736234858769,5.4399,3674.2,3674.1,3.49831282]
[1736234859680,5.4399,3674.2,3674.1,0.94181972]
[1736234860559,5.4399,3674.2,3674.1,3.49831282]
[1736234862851,5.4399,3674.2,3674.1,2.35770556]
[1736234863546,8.977731,3674.2,3674.1,2.35770556]
[1736234863747,9.786531,3674.2,3674.1,2.35770556]
[1736234864051,9.786531,3674.2,3674.1,3.49831282]
[1736234864252,10.95737893,3674.2,3674.1,3.49831282]
[1736234865538,12.28301454,3674.2,3673.8,1.41588584]
[1736234865731,3.5453,3673.9,3673.8,1.41588584]
[1736234865918,8.9852,3673.9,3673.8,1.41588584]
[1736234867058,8.9852,3673.9,3673.8,0.94412806]
[1736234871057,8.9852,3673.9,3673.6,2.3600139]
[1736234871362,2.72201,3673.8,3673.6,2.3600139]
[1736234872427,2.72201,3673.8,3673.7,0.94412806]
[1736234873562,5.4399,3673.9,3673.7,0.94412806]
[1736234874044,8.16181,3673.9,3673.7,0.94412806]
[1736234874747,8.16181,3673.9,3673.6,0.94412806]
[1736234878025,5.4399,3673.9,3673.6,0.94412806]
[1736234878230,2.72202,3673.8,3673.6,0.94412806]
[1736234878644,2.72202,3673.8,3673.5,0.94412806]
[1736234879266,8.16192,3673.8,3673.5,0.94412806]
[1736234884031,2.72212,3673.6,3673.5,0.94412806]
[1736234885886,2.72212,3673.6,3673.4,1.14060726]
[1736234886083,2.72212,3673.6,3673.2,0.94412806]
[1736234887767,2.72212,3673.6,3673.3,0.7774]
[1736234890490,5.4399,3673.8,3673.4,0.94286059]
[1736234890897,5.4399,3673.8,3673.5,0.7852]
[1736234891902,5.4399,3673.8,3673.5,2.8958881]
[1736234892464,5.4399,3673.8,3673.6,1.96424793]
[1736234892900,5.4399,3673.8,3673.6,4.04771578]
[1736234894065,5.4399,3673.8,3673.7,0.94286059]
[1736234895489,5.4399,3673.8,3673.7,2.08346785]
[1736234897004,5.4399,3673.8,3673.7,2.26546785]
[1736234897368,5.4399,3673.8,3673.7,3.07226785]
[1736234898571,5.4399,3673.8,3673.7,5.0582325]
[1736234899688,5.4399,3673.8,3673.7,3.34754643]
[1736234904122,5.4399,3673.8,3673.7,3.29754643]
[1736234906017,5.4399,3673.8,3673.7,2.49074643]
[1736234906221,5.4399,3673.8,3673.7,2.30874643]
[1736234908326,5.4399,3673.8,3673.7,0.89286059]
[1736234911126,5.4399,3673.8,3673.7,0.84286059]
[1736234911421,6.33572,3673.8,3673.7,0.84286059]
[1736234926153,9.05769,3673.8,3673.7,0.84286059]
[1736234927464,9.05769,3673.8,3673.4,2.55611984]
[1736234928857,9.05769,3673.8,3673.2,1.71035101]
[1736234928858,6.33572,3673.8,3673.3,2.55611984]
[1736234929068,0.83029679,3673.7,3673.3,2.55611984]
[1736234929267,2.72212,3673.6,3673.3,2.55611984]
[1736234929563,8.16202,3673.6,3673.3,2.55611984]
[1736234929766,0.7964,3673.5,3673.3,2.55611984]
[1736234930272,6.2363,3673.5,3673.3,2.55611984]
[1736234930977,6.2363,3673.5,3673.3,1.140234]
[1736234931270,6.57550457,3673.5,3673.3,1.140234]
[1736234932535,6.57550457,3673.5,3673.4,0.94330654]
[1736234933772,6.57550457,3673.5,3673.3,0.94330654]
[1736234933974,9.29773457,3673.5,3673.3,0.94330654]
[1736234934136,3.89311793,3673.4,3673.3,0.94330654]
[1736234934470,10.73511586,3673.4,3673.3,0.94330654]
[1736234935376,2.72234,3673.3,3673.2,0.94330654]
[1736234935573,8.16224,3673.3,3673.2,0.94330654]
[1736234936876,8.16224,3673.3,3673.1,0.005]
[1736234944250,0.8128,3673.2,3673.1,0.005]
[1736234944450,6.2527,3673.2,3673.1,0.005]
[1736234944985,6.90348062,3673.2,3673.1,0.005]